fUST/lending_fUST_20240417
["ID","MTS","AMOUNT","RATE_DAILY","PERIOD"]
[322804313,1713333053388,-466.384024,0.00120547,120]
[322804314,1713333053397,-151.0,0.00120547,120]
[322804315,1713333053407,-816.55,0.00120547,120]
[322804316,1713333053417,-168.231395,0.00120547,120]
[322804317,1713333053427,-286.327564,0.00120547,120]
[322804318,1713333053436,-500.0,0.00120547,120]
[322804319,1713333053446,-500.0,0.00120547,120]
[322804320,1713333053455,-811.29,0.00120547,120]
[322804321,1713333053465,-1224.79,0.00120547,120]
[322804322,1713333053474,-157.593849,0.00122375,120]
[322804323,1713333053483,-500.0,0.00123287,120]
[322804324,1713333053493,-254.817243,0.0012545,120]
[322804325,1713333053503,-7591.79,0.00126027,120]
[322804326,1713333053512,-500.0,0.00126027,120]
[322804327,1713333053521,-500.0,0.00126027,120]
[322804328,1713333053531,-579.09,0.00126027,120]
[322804329,1713333053540,-1749.94,0.00126027,120]
[322804330,1713333053550,-500.0,0.00126027,120]
[322804331,1713333053560,-27989.2,0.00126027,120]
[322804332,1713333053569,-583.93,0.00126027,120]
[322804333,1713333053578,-500.0,0.00126027,120]
[322804334,1713333053588,-7519.535238,0.00126027,120]
[322804335,1713333053598,-7519.535238,0.00126027,120]
[322804336,1713333053610,-238.46742383,0.00126027,120]
[322804337,1713333053623,-151.0,0.00126027,120]
[322804338,1713333053632,-21498.73,0.00126027,120]
[322804339,1713333053641,-500.0,0.00126027,120]
[322804340,1713333053652,-666.05,0.00126027,120]
[322804341,1713333053661,-1762.426907,0.00126027,120]
[322804342,1713333053671,-1762.426907,0.00126027,120]
[322804343,1713333053680,-5589.65,0.00126027,120]
[322804344,1713333053690,-3817.42,0.00126027,120]
[322804345,1713333053699,-816.55,0.00126027,120]
[322804346,1713333053709,-500.0,0.00126027,120]
[322804347,1713333053718,-500.0,0.00126027,120]
[322804348,1713333053727,-811.29,0.00126027,120]
[322804349,1713333053737,-151.0,0.00126027,120]
[322804350,1713333053746,-1224.79,0.00126027,120]
[322804351,1713333053755,-160.170849,0.00129008,120]
[322804352,1713333053764,-1751.645158,0.00129008,120]
[322804353,1713333053773,-167.158053,0.00129008,120]
[322804354,1713333053782,-157.593849,0.0012968,120]
[322804355,1713333053791,-1751.645158,0.00130621,120]
[322804356,1713333053801,-156.0,0.0013097,35]
[322804357,1713333053810,-156.0,0.0013098,35]
[322804358,1713333053820,-156.0,0.0013099,35]
[322804359,1713333053830,-254.817243,0.00131218,120]
[322804360,1713333053839,-7591.79,0.00131506,120]
[322804361,1713333053849,-500.0,0.00131506,120]
[322804362,1713333053858,-500.0,0.00131506,120]
[322804363,1713333053867,-579.09,0.00131506,120]
[322804364,1713333053876,-1749.94,0.00131506,120]
[322804365,1713333053887,-500.0,0.00131506,120]
[322804366,1713333053897,-172.992695,0.00131506,120]
[322804367,1713333053907,-172.992695,0.00131506,120]
[322804368,1713333053916,-27989.2,0.00131506,120]
[322804369,1713333053927,-583.93,0.00131506,120]
[322804370,1713333053936,-500.0,0.00131506,120]
[322804371,1713333053946,-21498.73,0.00131506,120]
[322804372,1713333053955,-500.0,0.00131506,120]
[322804373,1713333053965,-666.05,0.00131506,120]
[322804374,1713333053974,-5589.65,0.00131506,120]
[322804375,1713333053983,-3817.42,0.00131506,120]
[322804376,1713333053993,-816.55,0.00131506,120]
[322804377,1713333054002,-500.0,0.00131506,120]
[322804378,1713333054012,-500.0,0.00131506,120]
[322804379,1713333054022,-811.29,0.00131506,120]
[322804380,1713333054031,-1224.79,0.00131506,120]
[322804381,1713333054040,-1751.645158,0.00132234,120]
[322804382,1713333054050,-160.0,0.00132368,3]
[322804383,1713333054059,-1751.645158,0.00133846,120]
[322804384,1713333054069,-1751.645158,0.00135459,120]
[322804385,1713333054078,-500.0,0.00136986,120]
[322804386,1713333054087,-7591.79,0.00136986,120]
[322804387,1713333054097,-500.0,0.00136986,120]
[322804388,1713333054106,-500.0,0.00136986,120]
[322804389,1713333054116,-888.587281,0.00136986,120]
[322804390,1713333054125,-888.587281,0.00136986,120]
[322804391,1713333054137,-579.09,0.00136986,120]
[322804392,1713333054149,-796.910787,0.00136986,120]
[322804393,1713333054158,-1000.733791,0.00136986,120]
[322804394,1713333054167,-796.910787,0.00136986,120]
[322804395,1713333054177,-1000.733791,0.00136986,120]
[322804396,1713333054187,-1749.94,0.00136986,120]
[322804397,1713333054197,-500.0,0.00136986,120]
[322804398,1713333054207,-27989.2,0.00136986,120]
[322804399,1713333054217,-583.93,0.00136986,120]
[322804400,1713333054227,-189.03621135,0.00136986,120]
[322804401,1713333054237,-19541.53440071,0.00136986,120]
[322804402,1713333054425,-500.0,0.00020665,2]
[322804403,1713333054435,-500.0,0.00020665,2]
[322804404,1713333054446,-639.43126739,0.00020665,2]
[322804405,1713333054552,-500.0,0.00020665,2]
[322804406,1713333054562,-500.0,0.00020665,2]
[322804407,1713333054572,-500.0,0.00020665,2]
[322804408,1713333054581,-471.94191925,0.00020665,2]
[322804409,1713333054589,-500.0,0.00020665,2]
[322804410,1713333054600,-500.0,0.00020665,2]
[322804411,1713333054610,-521.46587846,0.00020665,2]
[322804412,1713333054619,-500.0,0.00020665,2]
[322804413,1713333054628,-1013.509397,0.00027394,2]
[322804414,1713333054640,-3742.37168361,0.00027395,2]
[322804415,1713333054650,-150.108,0.00039515,2]
[322804416,1713333054658,-540.95760803,0.00054794,120]
[322804417,1713333054668,-224.60731983,0.00069999,120]
[322804418,1713333054678,-1957.19559929,0.00136986,120]
[322804419,1713333054687,-500.0,0.00136986,120]
[322804420,1713333054696,-666.05,0.00136986,120]
[322804421,1713333054704,-2066.852675,0.00136986,120]
[322804422,1713333054713,-2066.852675,0.00136986,120]
[322804423,1713333054723,-5589.65,0.00136986,120]
[322804424,1713333054732,-3817.42,0.00136986,120]
[322804425,1713333054740,-466.384024,0.00136986,120]
[322804426,1713333054749,-466.384024,0.00136986,120]
[322804427,1713333054758,-151.0,0.00136986,120]
[322804428,1713333054767,-816.55,0.00136986,120]
[322804429,1713333054776,-500.0,0.00136986,120]
[322804430,1713333054785,-500.0,0.00136986,120]
[322804431,1713333054794,-811.29,0.00136986,120]
[322804432,1713333054803,-1224.79,0.00136986,120]
[322804433,1713333054812,-254.817243,0.00136986,120]
[322804434,1713333054821,-164.36071,0.00136986,120]
[322804435,1713333054829,-182.666084,0.00136986,120]
[322804436,1713333054838,-177.928811,0.00136986,120]
[322804437,1713333054847,-157.593849,0.00136986,120]
[322804438,1713333054856,-160.0,0.00137881,4]
[322804439,1713333054865,-7591.79,0.00142465,120]
[322804440,1713333054874,-450.848054,0.00142465,120]
[322804441,1713333054884,-500.0,0.00142465,120]
[322804443,1713333054895,-579.09,0.00142465,120]
[322804444,1713333054904,-1749.94,0.00142465,120]
[322804445,1713333054913,-199.11135917,0.00142465,120]
[322804446,1713333054922,-27989.2,0.00142465,120]
[322804447,1713333054931,-583.93,0.00142465,120]
[322804448,1713333054940,-7519.535238,0.00142465,120]
[322804449,1713333054949,-7519.535238,0.00142465,120]
[322804450,1713333054958,-151.0,0.00142465,120]
[322804451,1713333054967,-21498.73,0.00142465,120]
[322804452,1713333054976,-500.0,0.00142465,120]
[322804453,1713333054985,-666.05,0.00142465,120]
[322804454,1713333054994,-1762.426907,0.00142465,120]
[322804455,1713333055003,-1762.426907,0.00142465,120]
[322804456,1713333055012,-5589.65,0.00142465,120]
[322804457,1713333055022,-3817.42,0.00142465,120]
[322804458,1713333055031,-816.55,0.00142465,120]
[322804459,1713333055039,-500.0,0.00142465,120]
[322804460,1713333055048,-500.0,0.00142465,120]
[322804461,1713333055057,-811.29,0.00142465,120]
[322804462,1713333055066,-1224.79,0.00142465,120]
[322804463,1713333055075,-217.22277722,0.00142935,7]
[322804464,1713333055086,-160.0,0.00143394,5]
[322804465,1713333055095,-7591.79,0.00147945,120]
[322804466,1713333055104,-246.626067,0.00147945,120]
[322804467,1713333055113,-246.626067,0.00147945,120]
[322804468,1713333055122,-500.0,0.00147945,120]
[322804469,1713333055131,-579.09,0.00147945,120]
[322804470,1713333055143,-1749.94,0.00147945,120]
[322804471,1713333055152,-27989.2,0.00147945,120]
[322804472,1713333055161,-583.93,0.00147945,120]
[322804473,1713333055170,-21498.73,0.00147945,120]
[322804474,1713333055179,-465.35088341,0.00147945,120]
[322804475,1713333055188,-666.05,0.00147945,120]
[322804476,1713333055197,-5589.65,0.00147945,120]
[322804477,1713333055206,-3817.42,0.00147945,120]
[322804478,1713333055215,-816.55,0.00147945,120]
[322804479,1713333055224,-500.0,0.00147945,120]
[322804480,1713333055234,-500.0,0.00147945,120]
[322804481,1713333055243,-811.29,0.00147945,120]
[322804482,1713333055252,-1224.79,0.00147945,120]
[322804483,1713333055261,-160.0,0.00148906,6]
[322804484,1713333055270,-500.0,0.00150684,120]
[322804485,1713333055280,-172.992695,0.00150684,120]
[322804486,1713333055290,-172.992695,0.00150684,120]
[322804487,1713333055299,-1000.0,0.00150684,7]
[322804488,1713333055308,-1000.0,0.00150684,7]
[322804489,1713333055317,-1000.0,0.00150684,7]
[322804490,1713333055327,-1000.0,0.00150684,7]
[322804491,1713333055336,-1000.0,0.00150684,7]
[322804492,1713333055345,-1000.0,0.00150684,7]
[322804493,1713333055354,-1000.0,0.00150684,7]
[322804494,1713333055364,-1000.0,0.00150684,7]
[322804495,1713333055373,-1000.0,0.00150684,7]
[322804496,1713333055383,-1000.0,0.00150684,7]
[322804497,1713333055395,-1000.0,0.00150684,7]
[322804498,1713333055405,-1000.0,0.00150684,7]
[322804499,1713333055414,-1000.0,0.00150684,7]
[322804500,1713333055423,-1000.0,0.00150684,7]
[322804501,1713333055433,-1000.0,0.00150684,7]
[322804502,1713333055442,-870.704125,0.00150684,7]
[322804503,1713333055450,-7591.79,0.00153424,120]
[322804504,1713333055460,-500.0,0.00153424,120]
[322804505,1713333055469,-151.0,0.00153424,120]
[322804506,1713333055479,-151.0,0.00153424,120]
[322804507,1713333055488,-151.0,0.00153424,120]
[322804508,1713333055497,-3302.301536,0.00153424,14]
[322804509,1713333055506,-3302.301536,0.00153424,14]
[322804510,1713333055516,-888.587281,0.00153424,120]
[322804511,1713333055525,-888.587281,0.00153424,120]
[322804512,1713333055534,-579.09,0.00153424,120]
[322804513,1713333055543,-796.910787,0.00153424,120]
[322804514,1713333055552,-1000.733791,0.00153424,120]
[322804515,1713333055562,-796.910787,0.00153424,120]
[322804516,1713333055570,-1000.733791,0.00153424,120]
[322804517,1713333055579,-1749.94,0.00153424,120]
[322804518,1713333055588,-27989.2,0.00153424,120]
[322804519,1713333055598,-583.93,0.00153424,120]
[322804520,1713333055609,-21498.73,0.00153424,120]
[322804521,1713333055618,-666.05,0.00153424,120]
[322804522,1713333055627,-2066.852675,0.00153424,120]
[322804523,1713333055638,-2066.852683,0.00153424,120]
[322804524,1713333055649,-5589.65,0.00153424,120]
[322804525,1713333055659,-3817.42,0.00153424,120]
[322804526,1713333055670,-466.384024,0.00153424,120]
[322804527,1713333055683,-466.384019,0.00153424,120]
[322804528,1713333055693,-151.0,0.00153424,120]
[322804529,1713333055704,-816.55,0.00153424,120]
[322804530,1713333055714,-500.0,0.00153424,120]
[322804531,1713333055725,-500.0,0.00153424,120]
[322804532,1713333055734,-811.29,0.00153424,120]
[322804533,1713333055744,-1224.79,0.00153424,120]
[322804534,1713333055754,-1000.0,0.001539,120]
[322804535,1713333055765,-160.0,0.00154419,7]
[322804536,1713333055775,-168.954828,0.00156996,2]
[322804537,1713333055786,-7591.79,0.00158904,120]
[322804538,1713333055796,-500.0,0.00158904,120]
[322804539,1713333055806,-579.09,0.00158904,120]
[322804540,1713333055817,-1749.94,0.00158904,120]
[322804541,1713333055828,-27989.2,0.00158904,120]
[322804542,1713333055839,-583.93,0.00158904,120]
[322804543,1713333055849,-7519.535238,0.00158904,120]
[322804544,1713333055859,-7519.535247,0.00158904,120]
[322804545,1713333055869,-151.0,0.00158904,120]
[322804546,1713333055879,-21498.73,0.00158904,120]
[322804547,1713333055890,-666.05,0.00158904,120]
[322804548,1713333055900,-1762.426907,0.00158904,120]
[322804549,1713333055911,-1762.426916,0.00158904,120]
[322804550,1713333055920,-5589.65,0.00158904,120]
[322804551,1713333055933,-3817.42,0.00158904,120]
[322804552,1713333055942,-816.55,0.00158904,120]
[322804553,1713333055951,-500.0,0.00158904,120]
[322804554,1713333055960,-362.87123979,0.00158904,120]
[322804555,1713333055971,-811.29,0.00158904,120]
[322804556,1713333055981,-1224.79,0.00158904,120]
[322804557,1713333055991,-160.0,0.00159932,8]
[322804558,1713333056002,-500.0,0.00164383,120]
[322804559,1713333056011,-7591.79,0.00164383,120]
[322804560,1713333056020,-500.0,0.00164383,120]
[322804561,1713333056033,-579.09,0.00164383,120]
[322804562,1713333056043,-1749.94,0.00164383,120]
[322804563,1713333056053,-27989.2,0.00164383,120]
[322804564,1713333056062,-583.93,0.00164383,120]
[322804565,1713333056073,-21498.73,0.00164383,120]
[322804566,1713333056082,-666.05,0.00164383,120]
[322804567,1713333056092,-5589.65,0.00164383,120]
[322804568,1713333056102,-3817.42,0.00164383,120]
[322804569,1713333056111,-816.55,0.00164383,120]
[322804570,1713333056121,-204.56857065,0.00164383,120]
[322804571,1713333056131,-811.29,0.00164383,120]
[322804572,1713333056143,-1224.79,0.00164383,120]
[322804573,1713333056155,-160.0,0.00165445,9]
[322804574,1713333056165,-7591.79,0.00169863,120]
[322804575,1713333056174,-516.91321036,0.00169863,120]
[322804576,1713333056183,-579.09,0.00169863,120]
[322804577,1713333056193,-1749.94,0.00169863,120]
[322804578,1713333056203,-172.992695,0.00169863,120]
[322804579,1713333056213,-172.992701,0.00169863,120]
[322804580,1713333056223,-27989.2,0.00169863,120]
[322804581,1713333056233,-583.93,0.00169863,120]
[322804582,1713333056242,-21498.73,0.00169863,120]
[322804583,1713333056251,-666.05,0.00169863,120]
[322804584,1713333056260,-5589.65,0.00169863,120]
[322804585,1713333056269,-3817.42,0.00169863,120]
[322804586,1713333056278,-816.55,0.00169863,120]
[322804587,1713333056287,-811.29,0.00169863,120]
[322804588,1713333056296,-1224.79,0.00169863,120]
[322804589,1713333056306,-160.0,0.00170957,10]
[322804590,1713333056315,-160.94819897,0.00170957,5]
[322804591,1713333056324,-7591.79,0.00175342,120]
[322804592,1713333056335,-888.587281,0.00175342,120]
[322804593,1713333056345,-888.587275,0.00175342,120]
[322804594,1713333056354,-579.09,0.00175342,120]
[322804595,1713333056364,-796.910787,0.00175342,120]
[322804596,1713333056374,-1000.733791,0.00175342,120]
[322804597,1713333056383,-796.910791,0.00175342,120]
[322804598,1713333056394,-1000.733795,0.00175342,120]
[322804599,1713333056403,-1749.94,0.00175342,120]
[322804600,1713333056413,-27989.2,0.00175342,120]
[322804601,1713333056423,-583.93,0.00175342,120]
[322804602,1713333056432,-21498.73,0.00175342,120]
[322804603,1713333056441,-666.05,0.00175342,120]
[322804604,1713333056452,-5589.65,0.00175342,120]
[322804605,1713333056462,-3817.42,0.00175342,120]
[322804606,1713333056472,-816.55,0.00175342,120]
[322804607,1713333056483,-811.29,0.00175342,120]
[322804608,1713333056494,-1224.79,0.00175342,120]
[322804609,1713333056504,-500.0,0.00178082,120]
[322804610,1713333056513,-7591.90567795,0.00180821,120]
[322804611,1713333056523,-579.2259283,0.00180821,120]
[322804612,1713333056532,-1750.1683638,0.00180821,120]
[322804613,1713333056542,-27989.394,0.00180821,120]
[322804614,1713333056551,-583.99854626,0.00180821,120]
[322804615,1713333056560,-21498.85328136,0.00180821,120]
[322804616,1713333056569,-666.16622903,0.00180821,120]
[322804617,1713333056578,-5589.81690163,0.00180821,120]
[322804618,1713333056589,-3817.65583323,0.00180821,120]
[322804619,1713333056600,-816.62234148,0.00180821,120]
[322804620,1713333056612,-811.42405955,0.00180821,120]
[322804621,1713333056623,-1225.00345256,0.00180821,120]
[322804622,1713333056633,-500.0,0.0019178,120]
[322804623,1713333056645,-159.65142312,0.00192,120]
[322804624,1713333056654,-500.0,0.002,120]
[322804625,1713333056663,-334.78418864,0.002,120]
[322804626,1713333056673,-10000.0,0.002,120]
[322804627,1713333056683,-151.0,0.002,120]
[322804628,1713333056692,-151.0,0.002,120]
[322804629,1713333056701,-151.0,0.002,120]
[322804630,1713333056710,-3302.301536,0.002,14]
[322804631,1713333056719,-3302.301536,0.002,14]
[322804632,1713333056727,-500.0,0.00205479,120]
[322804633,1713333056736,-6168.0,0.002056,120]
[322804634,1713333056745,-500.0,0.00213698,120]
[322804635,1713333056756,-500.0,0.00219178,120]
[322804636,1713333056767,-500.0,0.00232876,120]
[322804637,1713333056776,-1000.0,0.002419,120]
[322804638,1713333056786,-500.0,0.00246575,120]
[322804639,1713333056797,-500.0,0.00260273,120]
[322804640,1713333056808,-153.0,0.00273151,120]
[322804641,1713333056819,-405.6131771,0.00273151,120]
[322804642,1713333056830,-238.7010642,0.00273151,120]
[322804643,1713333056839,-153.7405502,0.00273425,120]
[322804644,1713333056851,-500.0,0.00273972,120]
[322804645,1713333056860,-500.0,0.00273972,120]
[322804646,1713333056869,-480.77547576,0.00273972,120]
[322804647,1713333056879,-500.0,0.00273972,120]
[322804648,1713333056889,-501.4581328,0.00273972,120]
[322804649,1713333056898,-500.81240539,0.00273972,120]
[322804650,1713333056907,-501.18942656,0.00273972,120]
[322804651,1713333056917,-501.0330637,0.00273972,120]
[322804652,1713333056928,-500.49429553,0.00273972,120]
[322804653,1713333056937,-502.0313769,0.00273972,120]
[322804654,1713333056946,-501.02621382,0.00273972,120]
[322804655,1713333056957,-502.12952039,0.00273972,120]
[322804656,1713333056968,-501.29263839,0.00273972,120]
[322804657,1713333056978,-500.0,0.00273972,120]
[322804658,1713333056989,-529.21797637,0.00273972,7]
[322804659,1713333056999,-500.0,0.00273972,120]
[322804660,1713333057010,-188.85938934,0.00273972,120]
[322804661,1713333057020,-500.0,0.00273972,120]
[322804662,1713333057029,-500.0,0.00273972,120]
[322804663,1713333057038,-500.0,0.00273972,120]
[322804664,1713333057047,-553.20890594,0.00273972,120]
[322804665,1713333057056,-500.0,0.00273972,120]
[322804666,1713333057065,-502.25178424,0.00273972,120]
[322804667,1713333057075,-500.0,0.00273972,120]
[322804668,1713333057175,-500.0,0.00273972,120]
[322804669,1713333057185,-501.39201393,0.00273972,120]
[322804670,1713333057197,-500.0,0.00273972,120]
[322804671,1713333057206,-500.0,0.00273972,120]
[322804672,1713333057215,-501.38080905,0.00273972,120]
[322804673,1713333057225,-500.0,0.00273972,120]
[322804674,1713333057234,-501.00087063,0.00273972,120]
[322804675,1713333057243,-500.0,0.00273972,120]
[322804676,1713333057252,-500.0,0.00273972,120]
[322804677,1713333057261,-503.73406604,0.00273972,120]
[322804678,1713333057270,-500.0,0.00273972,120]
[322804679,1713333057280,-151.841853,0.00273972,120]
[322804680,1713333057289,-500.0,0.00273972,120]
[322804681,1713333057298,-500.0,0.00273972,120]
[322804682,1713333057307,-500.0,0.00273972,120]
[322804683,1713333057316,-500.0,0.00273972,120]
[322804684,1713333057325,-539.38712,0.00273972,120]
[322804685,1713333057334,-500.0,0.00273972,120]
[322804686,1713333057344,-500.0,0.00273972,120]
[322804687,1713333057353,-502.09874492,0.00273972,120]
[322804688,1713333057362,-500.0,0.00273972,120]
[322804689,1713333057371,-500.0,0.00273972,120]
[322804690,1713333057381,-501.95188006,0.00273972,120]
[322804691,1713333057391,-311.54198632,0.00273972,120]
[322804692,1713333057400,-500.0,0.00273972,120]
[322804693,1713333057410,-500.0,0.00273972,120]
[322804694,1713333057419,-507.04462723,0.00273972,120]
[322804695,1713333057428,-501.86297259,0.00273972,120]
[322804696,1713333057438,-512.43808079,0.00273972,120]
[322804697,1713333057447,-500.0,0.00273972,120]
[322804698,1713333057456,-500.0,0.00273972,120]
[322804699,1713333057466,-500.0,0.00273972,120]
[322804700,1713333057475,-500.0,0.00273972,120]
[322804701,1713333057484,-516.43854444,0.00273972,120]
[322804702,1713333057494,-500.0,0.00273972,120]
[322804703,1713333057503,-508.15989639,0.00273972,120]
[322804704,1713333057512,-416.77760653,0.00273972,120]
[322804705,1713333057522,-500.0,0.00273972,120]
[322804706,1713333057531,-500.0,0.00273972,120]
[322804707,1713333057540,-501.93897162,0.00273972,120]
[322804708,1713333057549,-500.0,0.00273972,120]
[322804709,1713333057558,-500.0,0.00273972,120]
[322804710,1713333057567,-500.0,0.00273972,120]
[322804711,1713333057576,-151.0,0.00273972,120]
[322804712,1713333057585,-500.0,0.00273972,120]
[322804713,1713333057594,-504.87304671,0.00273972,120]
[322804714,1713333057605,-591.38,0.00273972,120]
[322804715,1713333057615,-505.09591569,0.00273972,120]
[322804716,1713333057624,-500.0,0.00273972,120]
[322804717,1713333057633,-500.0,0.00273972,120]
[322804718,1713333057646,-500.0,0.00273972,120]
[322804719,1713333057656,-501.95186075,0.00273972,2]
[322804720,1713333057666,-500.0,0.00273972,120]
[322804721,1713333057676,-500.0,0.00273972,120]
[322804722,1713333057686,-500.99199538,0.00273972,2]
[322804723,1713333057697,-500.0,0.00273972,120]
[322804724,1713333057707,-500.0,0.00273972,120]
[322804725,1713333057716,-500.0,0.00273972,120]
[322804726,1713333057726,-500.0,0.00273972,120]
[322804727,1713333057735,-500.0,0.00273972,120]
[322804728,1713333057744,-506.08652143,0.00273972,14]
[322804729,1713333057754,-500.0,0.00273972,120]
[322804730,1713333057763,-500.0,0.00273972,120]
[322804731,1713333057773,-500.0,0.00273972,120]
[322804732,1713333057782,-500.0,0.00273972,120]
[322804733,1713333057795,-500.89734006,0.00273972,120]
[322804734,1713333057804,-501.14700616,0.00273972,120]
[322804735,1713333057814,-500.0,0.00273972,120]
[322804736,1713333057823,-500.0,0.00273972,120]
[322804737,1713333057832,-500.0,0.00273972,120]
[322804738,1713333057842,-500.0,0.00273972,120]
[322804739,1713333057856,-500.0,0.00273972,120]
[322804740,1713333057865,-500.0,0.00273972,120]
[322804741,1713333057874,-500.0,0.00273972,120]
[322804742,1713333057883,-525.5015651,0.00273972,120]
[322804743,1713333057897,-500.0,0.00273972,120]
[322804744,1713333057906,-500.0,0.00273972,120]
[322804745,1713333057915,-500.0,0.00273972,120]
[322804746,1713333057924,-500.0,0.00273972,120]
[322804747,1713333057933,-151.0,0.00273972,120]
[322804748,1713333057943,-500.0,0.00273972,120]
[322804749,1713333057952,-500.0,0.00273972,120]
[322804750,1713333057961,-151.0,0.00273972,120]
[322804751,1713333057971,-500.0,0.00273972,120]
[322804752,1713333057979,-494.26531028,0.00273972,120]
[322804753,1713333057989,-505.05396031,0.00273972,120]
[322804754,1713333057998,-500.0,0.00273972,120]
[322804755,1713333058007,-510.07823768,0.00273972,120]
[322804756,1713333058016,-500.0,0.00273972,120]
[322804757,1713333058026,-500.0,0.00273972,120]
[322804758,1713333058035,-500.0,0.00273972,120]
[322804759,1713333058044,-502.7339638,0.00273972,120]
[322804760,1713333058052,-500.0,0.00273972,120]
[322804761,1713333058061,-500.0,0.00273972,120]
[322804762,1713333058070,-500.0,0.00273972,120]
[322804763,1713333058079,-500.0,0.00273972,120]
[322804764,1713333058088,-500.0,0.00273972,120]
[322804765,1713333058098,-500.0,0.00273972,120]
[322804766,1713333058107,-500.0,0.00273972,120]
[322804767,1713333058116,-381.16875734,0.00273972,120]
[322804768,1713333058126,-500.0,0.00273972,120]
[322804769,1713333058134,-500.0,0.00273972,120]
[322804770,1713333058145,-502.47273314,0.00273972,120]
[322804771,1713333058154,-500.63356995,0.00273972,120]
[322804772,1713333058163,-500.0,0.00273972,120]
[322804773,1713333058173,-344.7741623,0.00273972,120]
[322804774,1713333058182,-500.0,0.00273972,120]
[322804775,1713333058191,-500.0,0.00273972,120]
[322804776,1713333058200,-500.0,0.00273972,120]
[322804777,1713333058210,-504.414417,0.00273972,120]
[322804778,1713333058218,-500.0,0.00273972,120]
[322804779,1713333058227,-303.4655565,0.00273972,120]
[322804780,1713333058237,-502.07467174,0.00273972,120]
[322804781,1713333058246,-500.0,0.00273972,120]
[322804782,1713333058255,-500.0,0.00273972,120]
[322804783,1713333058264,-500.0,0.00273972,120]
[322804784,1713333058273,-500.0,0.00273972,120]
[322804785,1713333058282,-500.0,0.00273972,120]
[322804786,1713333058292,-500.0,0.00273972,120]
[322804787,1713333058301,-500.0,0.00273972,120]
[322804788,1713333058310,-500.0,0.00273972,120]
[322804789,1713333058319,-156.910446,0.00273972,120]
[322804790,1713333058328,-151.331985,0.00273972,120]
[322804791,1713333058338,-500.0,0.00273972,120]
[322804792,1713333058348,-156.910446,0.00273972,120]
[322804793,1713333058358,-151.237041,0.00273972,120]
[322804794,1713333058367,-151.0,0.00273972,120]
[322804795,1713333058376,-151.0,0.00273972,120]
[322804796,1713333058385,-151.0,0.00273972,120]
[322804797,1713333058395,-151.0,0.00273972,120]
[322804798,1713333058405,-156.724254,0.00273972,120]
[322804799,1713333058415,-156.724254,0.00273972,120]
[322804800,1713333058427,-156.724254,0.00273972,120]
[322804801,1713333058436,-156.724254,0.00273972,120]
[322804802,1713333058446,-246.626067,0.00273972,120]
[322804803,1713333058456,-246.626067,0.00273972,120]
[322804804,1713333058468,-151.0,0.00273972,120]
[322804805,1713333058478,-151.0,0.00273972,120]
[322804806,1713333058488,-151.0,0.00273972,120]
[322804807,1713333058498,-3302.301536,0.00273972,14]
[322804808,1713333058508,-3302.301536,0.00273972,14]
[322804809,1713333058519,-151.256745,0.00273973,120]
[322804810,1713333058528,-151.0,0.00273973,120]
[322804811,1713333058537,-151.0,0.00273973,120]
[322804812,1713333058546,-151.0,0.00273973,120]
[322804813,1713333058555,-153.191879,0.00273973,120]